bitfinex/quotes_BTCUSD_20250825
["timestamp","ask_amount","ask_price","bid_price","bid_amount"]
[1756109222609,1.37765593,111310.0,111300.0,0.02198231]
[1756109222873,1.97396734,111310.0,111300.0,0.02198231]
[1756109223391,1.96896734,111310.0,111300.0,0.02198231]
[1756109223630,2.05883699,111310.0,111300.0,0.02198231]
[1756109224125,1.70758987,111310.0,111300.0,0.02198231]
[1756109224336,2.32798497,111310.0,111300.0,0.02198231]
[1756109224555,1.72165123,111310.0,111300.0,0.02198231]
[1756109224777,1.13085982,111310.0,111300.0,0.02198231]
[1756109224992,1.54861123,111310.0,111300.0,0.02198231]
[1756109225220,1.13185982,111310.0,111300.0,0.02198231]
[1756109225698,1.72317123,111310.0,111300.0,0.02198231]
[1756109225939,1.82815247,111310.0,111300.0,0.02198231]
[1756109226154,6.54934547,111310.0,111300.0,0.01297794]
[1756109226400,6.51726178,111310.0,111300.0,0.01297794]
[1756109226632,5.93295037,111310.0,111300.0,0.00397357]
[1756109226861,5.93295037,111310.0,111210.0,0.22885253]
[1756109226862,0.35744902,111250.0,111210.0,0.22885253]
[1756109227090,1.75502191,111250.0,111210.0,0.22885253]
[1756109227314,2.34633332,111250.0,111210.0,0.22972253]
[1756109227561,1.1669505,111250.0,111210.0,0.22972253]
[1756109227793,2.34957332,111250.0,111210.0,0.22972253]
[1756109228014,2.34957332,111250.0,111210.0,0.22885253]
[1756109228293,2.35005445,111250.0,111210.0,0.22885253]
[1756109228528,0.17982621,111220.0,111190.0,0.00690289]
[1756109228750,0.17982621,111220.0,111210.0,0.00204]
[1756109228751,0.35649557,111220.0,111210.0,0.00204]
[1756109228970,1.19032698,111220.0,111210.0,0.00204]
[1756109229199,1.37015075,111220.0,111210.0,0.00204]
[1756109229418,0.51985611,111200.0,111190.0,0.00690289]
[1756109229637,0.61686032,111200.0,111190.0,0.00896289]
[1756109229847,0.61686032,111200.0,111190.0,0.01193289]
[1756109229848,0.44338032,111200.0,111190.0,0.01193289]
[1756109230066,0.60040475,111200.0,111190.0,0.01193289]
[1756109230289,0.28601676,111200.0,111190.0,0.01193289]
[1756109230507,0.28601676,111200.0,111190.0,0.6032443]
[1756109230508,0.01644088,111200.0,111190.0,0.6032443]
[1756109230731,0.17444,111220.0,111190.0,0.80757807]
[1756109230954,0.00048083,111200.0,111190.0,0.09583254]
[1756109231177,0.00048083,111200.0,111190.0,0.00896289]
[1756109231745,0.001,111220.0,111210.0,0.1]
[1756109231747,0.001,111220.0,111210.0,0.55744902]
[1756109231972,0.001,111220.0,111210.0,1.53273741]
[1756109232210,0.01406159,111280.0,111250.0,0.1]
[1756109232430,0.01406159,111280.0,111270.0,0.81928364]
[1756109232650,0.01406159,111280.0,111270.0,0.91928364]
[1756109232874,0.01406159,111280.0,111270.0,1.05063041]
[1756109233137,0.14022163,111330.0,111280.0,0.1]
[1756109233368,0.26156475,111320.0,111300.0,0.81928364]
[1756109233588,0.26156475,111320.0,111280.0,0.19612866]
[1756109233820,0.00970457,111330.0,111310.0,0.81928364]
[1756109234048,0.00048142,111330.0,111320.0,0.82152941]
[1756109234274,0.00048142,111330.0,111320.0,0.81928364]
[1756109234749,0.00048142,111330.0,111320.0,0.1]
[1756109234978,0.00048142,111330.0,111320.0,0.92377518]
[1756109235201,0.00048142,111330.0,111320.0,1.02361741]
[1756109235442,0.00048142,111330.0,111300.0,0.34428]
[1756109235665,0.00048142,111330.0,111320.0,0.81928364]
[1756109235927,0.00048142,111330.0,111320.0,1.00616839]
[1756109236168,0.00048142,111330.0,111320.0,1.13061741]
[1756109236169,0.00148142,111330.0,111320.0,1.13061741]
[1756109236609,0.00148142,111330.0,111320.0,1.30601741]
[1756109236840,0.00148142,111330.0,111320.0,2.89370998]
[1756109237055,0.00048142,111330.0,111320.0,2.88670998]
[1756109237284,0.00248142,111330.0,111320.0,3.01470998]
[1756109237503,0.00820575,111380.0,111320.0,3.22069309]
[1756109237762,0.00820575,111380.0,111370.0,0.81928364]
[1756109238012,0.00820575,111380.0,111370.0,1.20025741]
[1756109238254,0.00820575,111380.0,111370.0,0.18688475]
[1756109238522,0.00820575,111380.0,111370.0,1.00616839]
[1756109238962,0.00820575,111380.0,111370.0,1.02361741]
[1756109239173,0.00820575,111380.0,111370.0,1.11463741]
[1756109239384,0.00820575,111380.0,111370.0,1.45463741]
[1756109239846,0.00820575,111380.0,111370.0,1.75921898]
[1756109239847,0.01020575,111380.0,111370.0,1.75921898]
[1756109240061,0.0062953,111380.0,111370.0,1.75921898]
[1756109240272,0.07110163,111430.0,111400.0,0.1]
[1756109240484,0.07124616,111430.0,111410.0,0.35073377]
[1756109240700,0.07124616,111430.0,111410.0,0.35077377]
[1756109240964,0.07124616,111430.0,111420.0,0.84122018]
[1756109241187,0.00014453,111430.0,111420.0,0.19535377]
[1756109241403,0.00014453,111430.0,111420.0,0.29535377]
[1756109241630,0.00214453,111430.0,111420.0,1.29231741]
[1756109241837,0.00314453,111430.0,111420.0,1.20169741]
[1756109242048,0.00314453,111430.0,111420.0,1.09768364]
[1756109242273,0.00314453,111430.0,111420.0,0.99768364]
[1756109242510,0.00314453,111430.0,111410.0,0.17612]
[1756109242722,0.00413453,111430.0,111410.0,0.07612]
[1756109242941,0.00413453,111430.0,111410.0,0.281698]
[1756109243161,0.00214453,111430.0,111420.0,0.002]
[1756109243399,0.00214453,111430.0,111420.0,0.92657813]
[1756109243603,0.00014453,111430.0,111420.0,0.92009061]
[1756109243832,0.00214453,111430.0,111420.0,0.004]
[1756109244050,0.16522091,111430.0,111420.0,0.004]
[1756109244268,0.17220091,111430.0,111390.0,0.06908]
[1756109244490,0.08008163,111410.0,111390.0,0.026983]
[1756109244713,0.01108,111400.0,111390.0,0.026983]
[1756109244931,0.50696638,111410.0,111390.0,0.026983]
[1756109245167,0.00299,111400.0,111360.0,0.91575684]
[1756109245369,0.00509,111400.0,111370.0,0.207747]
[1756109245588,0.00509,111400.0,111370.0,0.026987]
[1756109245589,0.09885475,111390.0,111370.0,0.026987]
[1756109245805,0.09885475,111390.0,111350.0,0.16908]
[1756109245806,0.00299,111380.0,111350.0,1.16563684]
[1756109246097,0.00299,111370.0,111360.0,0.026991]
[1756109246311,0.10095475,111370.0,111330.0,0.3498]
[1756109246537,0.34,111380.0,111360.0,0.81575684]
[1756109246759,0.34,111380.0,111360.0,0.1808639]
[1756109247009,0.25061967,111410.0,111370.0,0.00448952]
[1756109247010,0.08307163,111410.0,111370.0,0.00448952]
[1756109247351,0.34299,111400.0,111370.0,0.01744902]
[1756109247842,0.16696638,111410.0,111370.0,1.02458013]
[1756109247848,0.07110163,111410.0,111380.0,0.08688475]
[1756109248052,0.00898,111430.0,111390.0,0.83769458]
[1756109248259,0.001,111410.0,111400.0,1.10521893]
[1756109248462,0.001,111410.0,111400.0,1.20073061]
[1756109249242,0.001,111410.0,111400.0,1.63175061]
[1756109249463,0.001,111410.0,111400.0,0.54433377]
[1756109249685,0.03186655,111440.0,111400.0,0.4674576]
[1756109249931,0.07409163,111430.0,111410.0,0.01744902]
[1756109250383,0.07409163,111430.0,111400.0,0.18116]
[1756109250384,0.00509,111420.0,111400.0,0.18116]
[1756109250845,0.34,111430.0,111410.0,0.02193694]
[1756109251091,0.37201111,111440.0,111420.0,0.01744902]
[1756109251310,0.00299,111420.0,111410.0,0.01744902]
[1756109251582,0.00898,111410.0,111360.0,0.06904]
[1756109251810,0.09885475,111400.0,111360.0,0.15592475]
[1756109252045,0.07409163,111390.0,111340.0,0.93377284]
[1756109252268,0.16696638,111390.0,111350.0,0.36836475]
[1756109252509,0.00898,111370.0,111340.0,0.026996]
[1756109252754,0.00898,111370.0,111330.0,1.09940241]
[1756109252755,0.08688475,111370.0,111330.0,1.09940241]
[1756109252972,0.08688475,111370.0,111330.0,0.308435]
[1756109252973,0.09586475,111370.0,111330.0,0.308435]
[1756109253206,0.09586475,111370.0,111330.0,1.02716184]
[1756109253443,0.09586475,111370.0,111330.0,0.308435]
[1756109253632,0.09586475,111370.0,111330.0,0.026995]
[1756109253877,0.23600638,111370.0,111330.0,0.208395]
[1756109254148,0.16690475,111370.0,111340.0,0.00449074]
[1756109254399,0.16989475,111370.0,111340.0,0.00449074]
[1756109254619,0.16989475,111370.0,111340.0,0.00224537]
[1756109254872,0.09187475,111370.0,111350.0,0.01744902]
[1756109255118,0.002,111370.0,111350.0,0.01744902]
[1756109255334,0.002,111370.0,111360.0,0.02175399]
[1756109255579,0.002,111370.0,111360.0,0.01969399]
[1756109255813,0.002,111370.0,111360.0,0.45160874]
[1756109256052,0.002,111370.0,111360.0,0.54936377]
[1756109256298,0.00299,111390.0,111360.0,0.00206]
[1756109256531,0.00299,111390.0,111370.0,0.01744902]
[1756109256999,0.07619163,111380.0,111360.0,0.01759292]
[1756109257243,0.002,111370.0,111360.0,0.0011439]
[1756109257473,0.10095475,111370.0,111360.0,0.0001439]
[1756109258428,0.07802,111380.0,111360.0,0.0001439]
[1756109258641,0.18637,111370.0,111360.0,0.0001439]
[1756109258886,0.18633,111370.0,111360.0,0.0001439]
[1756109259114,0.00509,111370.0,111360.0,0.0001439]
[1756109259341,0.18633,111370.0,111360.0,0.0001439]
[1756109259571,0.21355606,111370.0,111360.0,0.0001439]
[1756109259821,0.06904,111380.0,111360.0,0.01962292]
[1756109260052,0.00724,111370.0,111360.0,0.01859292]
[1756109260285,0.03345563,111370.0,111360.0,0.0011439]
[1756109260500,0.1886,111370.0,111360.0,0.0011439]
[1756109260722,0.1886,111370.0,111360.0,0.01859292]
[1756109260723,0.18336,111370.0,111360.0,0.01859292]
[1756109260951,0.18136,111370.0,111360.0,0.01759292]
[1756109261180,0.16490475,111380.0,111360.0,0.01759292]
[1756109261501,0.18652,111370.0,111360.0,0.01859292]
[1756109261594,0.18652,111370.0,111360.0,0.0001439]
[1756109262282,0.18656,111370.0,111360.0,0.0001439]
[1756109262751,0.00524,111370.0,111360.0,0.0001439]
[1756109263227,0.18636,111370.0,111360.0,0.0001439]
[1756109263452,0.18732,111370.0,111360.0,0.0031439]
[1756109264094,0.00624,111370.0,111360.0,0.0031439]
[1756109264310,0.18732,111370.0,111360.0,0.0031439]
[1756109264744,0.1872,111370.0,111360.0,0.0031439]
[1756109265409,0.00624,111370.0,111360.0,0.0031439]
[1756109265625,0.18704,111370.0,111360.0,0.0031439]
[1756109266279,0.28290475,111370.0,111360.0,0.0031439]
[1756109266490,0.33450557,111370.0,111360.0,0.0031439]
[1756109266713,0.67450557,111370.0,111360.0,0.0031439]
[1756109266940,0.69101462,111370.0,111360.0,0.0031439]
[1756109267390,0.94995278,111370.0,111360.0,0.0031439]
[1756109267611,0.9740971,111370.0,111360.0,0.0031439]
[1756109268273,0.9740971,111370.0,111360.0,0.0001439]
[1756109268491,0.61371553,111370.0,111360.0,0.0001439]
[1756109268708,0.78165828,111370.0,111360.0,0.0001439]
[1756109268917,0.88913822,111370.0,111360.0,0.0001439]
[1756109269172,0.86637421,111370.0,111360.0,0.0001439]
[1756109269386,0.89113037,111370.0,111360.0,0.0001439]
[1756109269608,0.70817037,111370.0,111360.0,0.0001439]
[1756109269818,0.89112862,111370.0,111360.0,0.0001439]
[1756109270257,0.71016631,111370.0,111360.0,0.0011439]
[1756109270494,0.91699063,111370.0,111360.0,0.0011439]
[1756109270714,0.73431063,111370.0,111360.0,0.0011439]
[1756109270962,0.91719063,111370.0,111360.0,0.0011439]
[1756109271187,0.52886018,111370.0,111360.0,0.0011439]
[1756109271412,0.49573586,111370.0,111360.0,0.0011439]
[1756109271635,0.68743586,111370.0,111360.0,0.0011439]
[1756109271870,0.86701743,111370.0,111360.0,0.0011439]
[1756109272093,0.89181599,111370.0,111360.0,0.0011439]
[1756109272340,1.13180031,111370.0,111360.0,0.0011439]
[1756109272573,0.00898,111330.0,111290.0,0.00299]
[1756109272799,0.35075475,111320.0,111270.0,0.129998]
[1756109273070,0.00898,111310.0,111280.0,0.00299]
[1756109273294,0.18276,111300.0,111280.0,0.00299]
[1756109273525,0.07802,111320.0,111290.0,0.00502]
[1756109273744,0.18272,111310.0,111290.0,0.00603]
[1756109273967,0.28175475,111310.0,111290.0,0.004]
[1756109274092,0.28175475,111310.0,111280.0,0.01744902]
[1756109274312,0.28275475,111310.0,111280.0,0.02244902]
[1756109274724,0.28175475,111310.0,111280.0,0.01744902]
[1756109275365,0.28175475,111310.0,111280.0,0.01944902]
[1756109275583,0.28275475,111310.0,111290.0,0.005]
[1756109275802,0.10003475,111310.0,111290.0,0.005]
[1756109276006,0.09686475,111310.0,111290.0,0.005]
[1756109276220,0.18216,111300.0,111290.0,0.005]
[1756109276447,0.18216,111300.0,111290.0,0.00703]
[1756109276957,0.18212,111300.0,111290.0,0.00502]
[1756109277165,0.08888475,111310.0,111290.0,0.00502]
[1756109277399,0.07816431,111320.0,111290.0,0.00726638]
[1756109277400,0.18196,111300.0,111290.0,0.00726638]
[1756109277611,0.41816431,111320.0,111290.0,0.00926638]
[1756109277821,0.002,111300.0,111290.0,0.01126638]
[1756109278037,0.18196,111310.0,111290.0,0.00403]
[1756109278264,0.18196,111310.0,111290.0,0.00627638]
[1756109278485,0.18196,111310.0,111290.0,0.004]
[1756109278486,0.10110475,111300.0,111290.0,0.004]
[1756109278720,0.10110475,111300.0,111270.0,0.00224678]
[1756109278943,0.25104,111290.0,111260.0,0.44299]
[1756109279156,0.25104,111290.0,111260.0,0.00299]
[1756109279358,0.25104,111290.0,111270.0,0.01744902]
[1756109279808,0.25104,111290.0,111260.0,0.10299]
[1756109280225,0.25104,111290.0,111260.0,0.00523698]
[1756109280443,0.09586475,111280.0,111250.0,0.10299]
[1756109280673,0.08323,111290.0,111270.0,0.005]
[1756109280901,0.18172,111280.0,111270.0,0.005]
[1756109281118,0.18696,111280.0,111240.0,0.1]
[1756109281371,0.09586475,111280.0,111250.0,0.00299]
[1756109281587,0.1822,111270.0,111260.0,0.002]
[1756109281806,0.1822,111270.0,111260.0,0.02147902]
[1756109282008,0.00114423,111280.0,111260.0,0.01947902]
[1756109282259,0.00014423,111280.0,111260.0,0.02246902]
[1756109282469,0.18226423,111280.0,111260.0,0.02246902]
[1756109282728,0.00014423,111280.0,111260.0,0.02246902]
[1756109282939,0.18210423,111280.0,111260.0,0.02696298]
[1756109283151,0.00014423,111280.0,111270.0,0.01744902]
[1756109283369,0.00214423,111280.0,111270.0,0.02246902]
[1756109283787,0.00014423,111280.0,111270.0,0.01744902]
[1756109284019,0.00214423,111280.0,111270.0,0.00203]
[1756109284234,0.00421423,111280.0,111260.0,0.020696]
[1756109284477,0.07648586,111280.0,111270.0,0.003]
[1756109284735,0.0950117,111280.0,111270.0,0.004]
[1756109284947,0.0930117,111280.0,111270.0,0.003]
[1756109285160,0.00014423,111280.0,111270.0,0.00203]
[1756109285377,0.00014423,111280.0,111270.0,0.92711084]
[1756109285844,0.00214423,111280.0,111270.0,0.92711084]
[1756109286302,0.00214423,111280.0,111270.0,1.35813084]
[1756109286542,0.00214423,111280.0,111270.0,1.70687754]
[1756109287049,0.00214423,111280.0,111270.0,1.70887754]
[1756109287291,0.00014423,111280.0,111270.0,1.70887754]
[1756109287522,0.00014423,111280.0,111270.0,1.74785002]
[1756109287741,0.00114423,111280.0,111270.0,1.11485295]
[1756109287964,0.00114423,111280.0,111270.0,1.93661002]
[1756109288404,0.00085577,111280.0,111270.0,2.12435298]
[1756109288638,0.00085577,111280.0,111270.0,2.11735298]
[1756109288880,0.06849111,111320.0,111310.0,0.01744902]
[1756109289096,0.06863572,111320.0,111310.0,0.11085571]
[1756109289326,0.06863572,111320.0,111310.0,0.93160278]
[1756109289541,0.06863572,111320.0,111310.0,0.92711084]
[1756109290009,0.06863572,111320.0,111310.0,0.92412084]
[1756109290248,0.00014461,111320.0,111310.0,1.64005084]
[1756109290701,0.00014461,111320.0,111310.0,1.91579254]
[1756109290952,0.00014461,111320.0,111310.0,1.13904584]
[1756109291194,0.00014461,111320.0,111310.0,1.95780291]
[1756109291440,0.00014461,111320.0,111310.0,1.95764291]
[1756109291679,0.00014461,111320.0,111310.0,1.77488291]
[1756109291906,0.00114461,111320.0,111310.0,1.97279317]
[1756109293330,0.00114461,111320.0,111310.0,1.97879317]
[1756109293993,0.00114461,111320.0,111310.0,1.79711317]
[1756109294234,0.00114461,111320.0,111310.0,1.97847317]
[1756109294461,0.00114461,111320.0,111310.0,1.97899317]
[1756109294703,0.00114461,111320.0,111310.0,1.69686291]
[1756109294932,0.00114461,111320.0,111310.0,1.97908016]
[1756109295151,0.00114461,111320.0,111310.0,1.96992291]
[1756109296016,0.00114461,111320.0,111310.0,1.15216584]
[1756109296248,0.00114461,111320.0,111310.0,1.96992291]
[1756109296472,0.00114461,111320.0,111310.0,1.15216584]
[1756109296689,0.00114461,111320.0,111310.0,1.96992291]
[1756109297115,0.00114461,111320.0,111310.0,1.15216584]
[1756109297337,0.00114461,111320.0,111310.0,1.96992291]
[1756109297811,0.00114461,111320.0,111310.0,2.14960128]
[1756109298045,0.07110163,111360.0,111340.0,0.20846902]
[1756109298267,0.07124621,111360.0,111350.0,0.26848475]
[1756109299400,0.07124621,111360.0,111350.0,0.27248475]
[1756109299631,0.00114458,111360.0,111350.0,1.55280084]
[1756109299880,0.00114458,111360.0,111350.0,1.64382084]
[1756109300148,0.00114458,111360.0,111350.0,1.89256754]
[1756109300370,0.00114458,111360.0,111350.0,1.89356754]
[1756109300587,0.00114458,111360.0,111350.0,1.70897754]
[1756109300810,0.00114458,111360.0,111350.0,1.07266047]
[1756109301032,0.00014458,111360.0,111350.0,1.09468747]
[1756109301266,0.00014458,111360.0,111350.0,1.00246747]
[1756109301484,0.00227458,111360.0,111350.0,0.38673377]
[1756109301704,0.00014458,111360.0,111350.0,0.28673377]
[1756109301932,0.00537458,111360.0,111350.0,0.28673377]
[1756109302577,0.00537458,111360.0,111350.0,0.28573377]
[1756109303008,0.00737458,111360.0,111350.0,0.28573377]
[1756109303648,0.00427458,111360.0,111350.0,0.28573377]
[1756109304081,0.00427458,111360.0,111350.0,0.10433377]
[1756109304082,0.00737458,111360.0,111350.0,0.10433377]
[1756109304287,0.00737458,111360.0,111350.0,0.28541377]
[1756109304946,0.00214458,111360.0,111350.0,0.28541377]
[1756109305431,0.00737458,111360.0,111340.0,0.096069]
[1756109305645,0.00427458,111360.0,111340.0,0.15596475]
[1756109305866,0.00427458,111360.0,111350.0,0.18048]
[1756109306086,0.00737458,111360.0,111350.0,0.18048]
[1756109306323,0.00214458,111360.0,111350.0,1.10469084]
[1756109306773,0.00214458,111360.0,111350.0,0.28992377]
[1756109307013,0.00214458,111360.0,111350.0,0.48094377]
[1756109307433,0.00014458,111360.0,111350.0,1.63870084]
[1756109307864,0.00314458,111360.0,111350.0,1.63870084]
[1756109308096,0.00014458,111360.0,111350.0,1.88744754]
[1756109308516,0.00214458,111360.0,111350.0,1.88744754]
[1756109308734,0.00214458,111360.0,111350.0,2.06706137]
[1756109308980,0.00214458,111360.0,111350.0,1.88744754]
[1756109309203,0.00014458,111360.0,111350.0,1.88844754]
[1756109309670,0.00014458,111360.0,111350.0,1.88744754]
[1756109309884,0.00014458,111360.0,111350.0,1.88445754]
[1756109310116,0.00014458,111360.0,111350.0,1.78745754]
[1756109310337,0.00014458,111360.0,111350.0,1.88745754]
[1756109310556,0.00114458,111360.0,111350.0,1.88744754]
[1756109310788,0.00114458,111360.0,111350.0,1.89044754]
[1756109310992,0.00014458,111360.0,111350.0,1.89044754]
[1756109311217,0.00014458,111360.0,111350.0,1.89144754]
[1756109311453,0.00014458,111360.0,111350.0,0.97110047]
[1756109311719,0.00227458,111360.0,111350.0,0.53088475]
[1756109311962,0.00537458,111360.0,111350.0,0.004]
[1756109312195,0.00537458,111360.0,111350.0,0.1848]
[1756109312413,0.00227458,111360.0,111350.0,0.09088475]
[1756109312632,0.00537458,111360.0,111350.0,0.09237509]
[1756109312848,0.00537458,111360.0,111350.0,0.08788475]
[1756109313102,0.00014458,111360.0,111350.0,0.09337509]
[1756109313329,0.00014458,111360.0,111350.0,0.10862894]
[1756109313543,0.00014458,111360.0,111350.0,0.10438377]
[1756109313763,0.00537458,111360.0,111350.0,0.10438377]
[1756109314408,0.00537458,111360.0,111350.0,0.18069]
[1756109314635,0.00537458,111360.0,111350.0,0.18269]
[1756109314872,0.00537458,111360.0,111350.0,0.00205]
[1756109315098,0.01435458,111360.0,111350.0,5e-05]
[1756109315576,0.10323933,111360.0,111350.0,5e-05]
[1756109316040,0.10823933,111360.0,111350.0,0.00105]
[1756109316279,0.01935458,111360.0,111350.0,5e-05]
[1756109316507,0.01635458,111360.0,111350.0,5e-05]
[1756109316722,0.00737458,111360.0,111350.0,5e-05]
[1756109316940,0.00537458,111360.0,111350.0,5e-05]
[1756109317848,0.01037458,111360.0,111350.0,0.00105]
[1756109318333,0.01935458,111360.0,111350.0,0.00105]
[1756109319022,0.02135458,111360.0,111350.0,0.00105]
[1756109319653,0.03795687,111360.0,111350.0,0.00105]
[1756109319856,0.02135458,111360.0,111350.0,0.00105]
[1756109320223,0.0379614,111360.0,111350.0,0.00105]
[1756109320691,0.01237458,111360.0,111350.0,0.00105]
[1756109320894,0.02135458,111360.0,111350.0,0.00105]
[1756109322089,0.10823933,111360.0,111350.0,0.00105]
[1756109322740,0.11724174,111360.0,111350.0,0.00105]
[1756109323901,0.10823933,111360.0,111350.0,0.00105]
[1756109324124,0.09925933,111360.0,111350.0,0.00105]
[1756109324374,0.10823933,111360.0,111350.0,0.00105]
[1756109325010,0.01237458,111360.0,111350.0,0.00105]
[1756109325242,0.00927458,111360.0,111350.0,0.00105]
[1756109325468,0.00913458,111360.0,111350.0,0.00105]
[1756109325686,0.01206458,111360.0,111350.0,0.00105]
[1756109325909,0.00714458,111360.0,111350.0,0.02500936]
[1756109326122,0.00714458,111360.0,111350.0,0.11189411]
[1756109326567,0.00913458,111360.0,111350.0,0.01849902]
[1756109326782,0.01206458,111360.0,111350.0,0.01849902]
[1756109327669,0.00913458,111360.0,111350.0,0.01849902]
[1756109327888,0.00714458,111360.0,111350.0,0.02074419]
[1756109328116,0.00714458,111360.0,111350.0,0.02500936]
[1756109328576,0.00714458,111360.0,111350.0,0.11189411]
[1756109328839,0.00714458,111360.0,111350.0,0.11039377]
[1756109329054,0.00714458,111360.0,111350.0,0.11488411]
[1756109329486,0.00714458,111360.0,111350.0,1.00172118]
[1756109329696,0.00714458,111360.0,111350.0,1.43723084]
[1756109330153,0.00714458,111360.0,111350.0,1.70786467]
[1756109330378,0.00714458,111360.0,111350.0,1.95661137]
[1756109331081,0.00714458,111360.0,111350.0,2.15661137]
[1756109331321,0.00514458,111360.0,111350.0,1.15924047]
[1756109331550,0.00514458,111360.0,111350.0,2.15507754]
[1756109331798,0.00514458,111360.0,111350.0,2.15607754]
[1756109332016,0.00014458,111360.0,111350.0,2.15507754]
[1756109332157,0.00014458,111360.0,111350.0,1.95507754]
[1756109332387,0.00114458,111360.0,111350.0,1.95507754]
[1756109333454,0.07110163,111390.0,111360.0,0.45744902]
[1756109333655,0.07110163,111390.0,111370.0,0.26460475]
[1756109334103,0.07110163,111390.0,111380.0,0.17752]
[1756109334345,0.07309163,111390.0,111380.0,0.26440475]
[1756109334515,0.07110163,111390.0,111380.0,0.26440475]
[1756109334732,0.07310163,111390.0,111380.0,0.26642475]
[1756109334935,0.07310163,111390.0,111380.0,0.26440475]
[1756109334936,0.07509163,111390.0,111380.0,0.26440475]
[1756109335279,0.07809163,111390.0,111380.0,0.26440475]
[1756109335459,0.07509163,111390.0,111380.0,0.26440475]
[1756109335587,0.08009163,111390.0,111380.0,0.26540475]
[1756109335791,0.08302163,111390.0,111380.0,0.08788475]
[1756109335991,0.08302163,111390.0,111380.0,0.19592902]
[1756109336205,0.08302163,111390.0,111380.0,0.01844902]
[1756109336440,0.08302163,111390.0,111380.0,0.001]
[1756109337906,0.01192,111390.0,111380.0,0.001]
[1756109340562,0.01192,111390.0,111380.0,0.00324456]
[1756109340797,0.007,111390.0,111380.0,0.00526456]
[1756109341011,0.01192,111390.0,111380.0,0.00324456]
[1756109341235,0.00899,111390.0,111380.0,0.001]
[1756109341452,0.01192,111390.0,111380.0,0.001]
[1756109343826,0.00899,111390.0,111380.0,0.001]
[1756109344066,0.007,111390.0,111380.0,0.00302]
[1756109344294,0.00899,111390.0,111380.0,0.001]
[1756109344506,0.01192,111390.0,111380.0,0.001]
[1756109349922,0.007,111390.0,111380.0,0.00532456]
[1756109350139,0.007,111390.0,111380.0,0.02052902]
[1756109350545,0.007,111390.0,111380.0,0.02348902]
[1756109350686,0.007,111390.0,111380.0,0.02277358]
[1756109351575,0.007,111390.0,111380.0,0.01969358]
[1756109351771,0.007,111390.0,111380.0,0.01589358]
[1756109352415,0.007,111390.0,111380.0,0.01369902]
[1756109352944,0.00915,111390.0,111380.0,0.01161902]
[1756109353405,0.007,111390.0,111380.0,0.01369902]
[1756109353665,0.007,111390.0,111380.0,0.10058377]
[1756109353867,0.007,111390.0,111380.0,0.10354377]
[1756109354074,0.01209,111390.0,111380.0,5e-05]
[1756109354904,0.00715,111390.0,111380.0,5e-05]
[1756109355100,0.00815,111390.0,111380.0,5e-05]
[1756109355936,0.01109,111390.0,111380.0,5e-05]
[1756109356661,0.01009,111390.0,111380.0,5e-05]
[1756109357116,0.01209,111390.0,111380.0,5e-05]
[1756109362701,0.01209,111390.0,111360.0,0.01739344]
[1756109362921,0.00294,111380.0,111360.0,0.01739344]
[1756109363147,0.00215,111380.0,111370.0,0.00208]
[1756109363423,0.00215,111380.0,111360.0,0.01739344]
[1756109363650,0.00509,111380.0,111360.0,0.01739344]
[1756109364078,0.00215,111380.0,111360.0,0.01739344]
[1756109364717,0.00715,111380.0,111370.0,0.00308]
[1756109364928,0.00315,111380.0,111370.0,0.00208]
[1756109365332,0.00715,111380.0,111370.0,0.00208]
[1756109365553,0.005,111380.0,111370.0,0.9504656]
[1756109365778,0.005,111380.0,111370.0,1.12065608]
[1756109365989,0.001,111380.0,111370.0,1.12065608]
[1756109366435,0.005,111380.0,111370.0,1.46170608]
[1756109366638,0.004,111380.0,111370.0,1.31401008]
[1756109366855,0.005,111380.0,111370.0,0.47444777]
[1756109367100,0.005,111380.0,111370.0,0.10746377]
[1756109367319,0.004,111380.0,111370.0,0.10970853]
[1756109367544,0.004,111380.0,111370.0,0.11491329]
[1756109367763,0.14322621,111410.0,111380.0,0.01744902]
[1756109367974,0.00215,111390.0,111380.0,0.01744902]
[1756109368190,0.00215,111390.0,111380.0,0.01952902]
[1756109368421,0.00215,111390.0,111370.0,5e-05]
[1756109368644,0.002,111380.0,111370.0,0.01849902]
[1756109368875,0.23011096,111410.0,111380.0,0.01744902]
[1756109369152,0.00215,111390.0,111380.0,0.01744902]
[1756109369850,0.004,111390.0,111380.0,0.01952902]
[1756109370074,0.00909,111390.0,111380.0,0.01744902]
[1756109370305,0.00909,111390.0,111370.0,0.17445]
[1756109370518,0.00909,111390.0,111370.0,0.01749902]
[1756109371618,0.00509,111390.0,111370.0,0.01749902]
[1756109371829,0.00809,111390.0,111370.0,0.01749902]
[1756109372274,0.00294,111380.0,111370.0,0.01749902]
[1756109372490,0.00215,111380.0,111370.0,0.01749902]
[1756109372714,0.00594,111390.0,111370.0,0.01957902]
[1756109373167,0.00294,111390.0,111370.0,0.01957902]
[1756109373634,0.00294,111390.0,111370.0,0.02057902]
[1756109374307,0.00215,111380.0,111370.0,0.01749902]
[1756109374744,0.00215,111380.0,111370.0,0.01957902]
[1756109374968,0.00294,111390.0,111370.0,0.01957902]
[1756109375611,0.002,111380.0,111370.0,0.01957902]
[1756109376010,0.00709,111380.0,111370.0,0.01749902]
[1756109376260,0.00509,111380.0,111370.0,0.01749902]
[1756109376948,0.00509,111380.0,111370.0,0.01849902]
[1756109377166,0.00509,111380.0,111370.0,0.00105]
[1756109377378,0.00509,111380.0,111370.0,5e-05]
[1756109377590,0.00809,111380.0,111370.0,5e-05]
[1756109377807,0.003,111380.0,111370.0,0.00437476]
[1756109378028,0.003,111380.0,111370.0,0.00661952]
[1756109378628,0.00515,111380.0,111370.0,0.00661952]
[1756109378888,0.00215,111380.0,111370.0,0.00661952]
[1756109379108,0.00615,111380.0,111370.0,0.00761952]
[1756109379556,0.00215,111380.0,111370.0,0.00661952]
[1756109379772,0.001,111380.0,111370.0,0.00661952]
[1756109379996,0.002,111380.0,111370.0,0.02406854]
[1756109380208,0.002,111380.0,111370.0,0.02708854]
[1756109380433,0.001,111380.0,111370.0,0.02708854]
[1756109380664,0.001,111380.0,111370.0,0.9505756]
[1756109380880,0.001,111380.0,111370.0,0.94608608]
[1756109381541,0.001,111380.0,111370.0,0.10948377]
[1756109381757,0.001,111380.0,111370.0,0.27942377]
[1756109382006,0.00306,111400.0,111380.0,0.01744902]
[1756109382221,0.00215,111390.0,111380.0,0.01744902]
[1756109382440,0.00521,111390.0,111380.0,0.01744902]
[1756109382877,0.00521,111390.0,111380.0,0.04443502]
[1756109383099,0.49459333,111410.0,111380.0,0.04658502]
[1756109383312,0.58147808,111410.0,111380.0,0.04882958]